bitfinex/quotes_ETHUSD_20250326
["timestamp","ask_amount","ask_price","bid_price","bid_amount"]
[1742992812940,3.0,2066.6,2066.2,5.5085215]
[1742992813155,3.0,2066.6,2066.3,4.83946]
[1742992813849,3.0,2066.6,2066.4,0.8227]
[1742992814047,0.41941139,2066.9,2066.4,0.8227]
[1742992814048,0.05,2066.9,2066.5,4.83909]
[1742992814219,3.0,2066.8,2066.5,4.83898]
[1742992814644,3.0,2066.8,2066.4,19.8727]
[1742992814833,4.83872,2066.7,2066.4,19.8727]
[1742992815052,7.83848,2066.8,2066.4,24.71201]
[1742992815340,7.83848,2066.8,2066.4,31.84697229]
[1742992815541,7.83848,2066.8,2066.4,31.84694229]
[1742992815768,7.83848,2066.8,2066.4,27.00772229]
[1742992816048,7.83848,2066.8,2066.4,31.84690229]
[1742992816215,7.83848,2066.8,2066.4,27.00768229]
[1742992816420,7.83848,2066.8,2066.5,5.889525]
[1742992816776,7.83848,2066.8,2066.4,27.00780229]
[1742992817065,7.83848,2066.8,2066.4,12.50780229]
[1742992817927,12.67706,2066.8,2066.4,12.50780229]
[1742992818133,4.83863,2066.7,2066.4,12.50780229]
[1742992819860,3.0,2066.8,2066.4,12.50765229]
[1742992820068,3.0,2066.8,2066.5,6.08969523]
[1742992820372,0.05,2066.9,2066.6,4.83871]
[1742992820947,0.05,2066.9,2066.7,4.83862]
[1742992822188,0.05,2066.9,2066.7,4.83848]
[1742992822491,0.05,2066.9,2066.8,0.483848]
[1742992823030,4.83849,2066.8,2066.5,1.25076523]
[1742992823230,3.97321441,2066.6,2066.4,10.21797]
[1742992823464,3.97321441,2066.6,2066.4,10.21798]
[1742992823828,3.97321441,2066.6,2066.5,4.83909]
[1742992824040,3.97321441,2066.6,2066.4,4.83928]
[1742992824671,3.97321441,2066.6,2066.4,4.8392]
[1742992824976,3.97321441,2066.6,2066.5,4.83909]
[1742992826359,3.97321441,2066.8,2066.5,4.83893]
[1742992826858,3.97321441,2066.6,2066.4,6.20421]
[1742992827360,3.97321441,2066.6,2066.4,11.04344]
[1742992827558,3.97321441,2066.6,2066.4,6.20414]
[1742992827765,3.97321441,2066.6,2066.4,11.04333]
[1742992828074,3.97321441,2066.6,2066.5,4.83909]
[1742992828252,3.97321441,2066.6,2066.5,5.943409]
[1742992828641,3.97321441,2066.8,2066.5,5.943229]
[1742992829662,3.97321441,2066.8,2066.5,10.782169]
[1742992829970,3.97321441,2066.8,2066.6,4.83882]
[1742992830355,3.97321441,2066.8,2066.5,5.943229]
[1742992830558,0.05,2066.9,2066.7,4.83863]
[1742992830763,0.05,2066.9,2066.8,5.63669]
[1742992831977,0.05,2066.9,2066.7,4.83847]
[1742992832267,0.05,2066.9,2066.8,4.83839]
[1742992832475,4.02321441,2066.9,2066.8,4.83839]
[1742992832770,4.02321441,2066.9,2066.8,7.03800747]
[1742992833173,4.02321441,2066.9,2066.8,7.83740747]
[1742992833370,0.05,2066.9,2066.8,7.83740747]
[1742992833672,0.05,2066.9,2066.8,7.88578605]
[1742992833862,0.05,2066.9,2066.8,7.83740747]
[1742992834262,4.02321441,2066.9,2066.8,7.83740747]
[1742992834569,4.11746539,2066.9,2066.8,7.83740747]
[1742992835071,4.11746539,2066.9,2066.8,22.33740747]
[1742992836304,0.14425098,2066.9,2066.8,22.33740747]
[1742992836898,0.14425098,2066.9,2066.8,7.83740747]
[1742992838390,0.14425098,2066.9,2066.8,11.85899685]
[1742992838557,0.05,2066.9,2066.8,11.81062188]
[1742992840988,0.05,2066.9,2066.8,26.31062188]
[1742992844205,0.05,2066.9,2066.8,22.33740747]
[1742992847692,0.05,2066.9,2066.8,7.03800747]
[1742992848795,0.05,2066.9,2066.8,7.08638252]
[1742992849375,0.05,2066.9,2066.8,7.03800747]
[1742992851099,0.05,2066.9,2066.8,7.85598254]
[1742992852401,0.7787,2067.6,2067.4,4.8369]
[1742992852614,0.7787,2067.6,2067.2,4.83746]
[1742992852898,3.97321441,2067.5,2067.3,4.83714]
[1742992854394,3.97321441,2067.5,2067.2,4.83746]
[1742992854570,3.97321441,2067.5,2067.2,4.83732]
[1742992854769,3.97321441,2067.5,2067.2,9.67462]
[1742992855008,3.97321441,2067.5,2067.2,4.8373]
[1742992855188,3.97321441,2067.5,2067.2,5.77593]
[1742992855604,3.97321441,2067.5,2067.1,9.38666]
[1742992855605,3.97321441,2067.3,2067.1,9.38666]
[1742992856373,3.97321441,2067.3,2067.1,14.2242]
[1742992856575,3.97321441,2067.3,2067.1,9.38654]
[1742992856878,3.97321441,2067.3,2067.1,14.22408]
[1742992857581,0.7725,2067.4,2067.1,14.22408]
[1742992857766,0.7725,2067.4,2067.1,15.7790479]
[1742992858211,3.97321441,2067.3,2067.1,4.549]
[1742992858397,3.97321441,2067.3,2066.8,9.38233]
[1742992858398,5.66154,2067.2,2066.8,9.38233]
[1742992858593,3.97321441,2067.1,2066.8,9.38233]
[1742992859004,3.97321441,2067.1,2066.8,4.83833]
[1742992859178,3.97321441,2067.1,2066.8,9.67663]
[1742992859382,3.97321441,2067.1,2066.9,4.83805]
[1742992859775,3.97321441,2067.1,2066.8,6.35896198]
[1742992861392,3.97321441,2067.1,2066.8,1.52064198]
[1742992861575,3.97321441,2067.1,2066.7,5.52978976]
[1742992862116,8.81103441,2067.1,2066.8,4.83835]
[1742992862313,8.81103441,2067.1,2066.7,10.36819976]
[1742992862502,8.81103441,2067.1,2066.8,4.83838]
[1742992862976,3.97321441,2067.1,2066.8,4.83838]
[1742992863277,3.97321441,2067.1,2066.8,6.35903798]
[1742992864376,8.81094441,2067.1,2066.8,6.35903798]
[1742992865210,3.97321441,2067.1,2066.8,6.35903798]
[1742992865605,3.97321441,2067.1,2066.8,11.19731798]
[1742992865903,9.63462441,2067.2,2066.8,6.35897798]
[1742992866109,4.79711441,2067.2,2066.8,6.35892798]
[1742992866311,5.66145,2067.2,2066.8,11.19716798]
[1742992866508,0.8239,2067.2,2066.8,1.52065798]
[1742992866712,5.6614,2067.2,2066.8,6.35885798]
[1742992867012,2.37725904,2067.0,2066.7,9.38358]
[1742992867509,2.37725904,2067.0,2066.7,9.38349]
[1742992867715,2.37725904,2066.9,2066.7,9.38349]
[1742992867917,2.37725904,2067.0,2066.7,9.38349]
[1742992868122,2.37725904,2066.9,2066.7,9.38349]
[1742992868302,2.37725904,2067.0,2066.7,15.724485]
[1742992868706,2.37725904,2067.0,2066.8,4.83829]
[1742992868932,3.96195872,2067.1,2066.8,4.83829]
[1742992869813,8.79975872,2067.1,2066.7,10.886165]
[1742992869996,8.79975872,2067.1,2066.7,15.724665]
[1742992870335,8.79975872,2067.1,2066.8,4.83835]
[1742992870811,3.96195872,2067.1,2066.8,9.67659]
[1742992871008,3.96195872,2067.1,2066.8,6.50778575]
[1742992871188,5.66141,2067.2,2066.9,4.83808]
[1742992871389,8.79967872,2067.1,2066.8,1.66954575]
[1742992871585,8.79967872,2067.1,2066.8,6.50790575]
[1742992871776,8.79967872,2067.1,2066.8,4.83836]
[1742992871980,3.96195872,2067.1,2066.8,4.83828]
[1742992872191,3.96195872,2067.1,2066.9,4.83814]
[1742992873325,3.96195872,2067.1,2066.8,4.83828]
[1742992874011,3.96195872,2067.1,2066.8,9.67654]
[1742992874209,3.96195872,2067.1,2066.8,4.83826]
[1742992874596,3.96195872,2067.1,2066.8,6.35757825]
[1742992874922,3.96195872,2067.1,2066.8,11.19582825]
[1742992876208,3.96195872,2067.1,2066.8,6.35756825]
[1742992876415,3.96195872,2067.1,2066.8,11.19581825]
[1742992876608,5.66141,2067.2,2066.8,11.19581825]
[1742992876609,5.66141,2067.2,2066.8,1.51931825]
[1742992876808,3.96195872,2067.1,2066.8,4.83832]
[1742992877008,3.96195872,2067.1,2066.8,9.67656]
[1742992877208,3.96195872,2067.1,2066.8,9.67652]
[1742992877406,3.96195872,2067.1,2066.8,9.67649]
[1742992878532,3.96195872,2067.1,2066.8,4.83824]
[1742992878735,8.66157,2067.2,2066.8,4.83822]
[1742992879338,8.66157,2067.2,2066.8,9.6765]
[1742992879703,8.66157,2067.2,2066.8,4.83822]
[1742992880034,8.66157,2067.2,2066.8,9.67646]
[1742992880332,8.66157,2067.2,2066.8,11.19573825]
[1742992881230,3.8239,2067.2,2066.9,4.83811]
[1742992882411,8.66137,2067.2,2066.8,11.99653825]
[1742992882940,3.8239,2067.2,2066.9,4.83814]
[1742992883505,3.96195872,2067.1,2066.8,1.51927825]
[1742992883830,3.96195872,2067.1,2066.8,6.35758825]
[1742992884202,3.96195872,2067.1,2066.8,6.35756825]
[1742992884533,3.96195872,2067.1,2066.8,11.19574825]
[1742992884700,3.96195872,2067.1,2066.8,6.35749825]
[1742992885130,3.96195872,2067.1,2066.8,1.51927825]
[1742992885328,0.7728,2066.9,2066.6,0.97132253]
[1742992885499,9.57312872,2066.9,2066.5,4.83902]
[1742992885704,9.57307872,2066.9,2066.5,4.83902]
[1742992885904,7.83848,2066.8,2066.4,9.37531]
[1742992886523,7.83848,2066.8,2066.4,9.37525]
[1742992886713,7.83848,2066.8,2066.5,1.45871727]
[1742992889117,2.37800948,2066.7,2066.5,1.45871727]
[1742992890442,2.37800948,2066.7,2066.5,15.95871727]
[1742992895442,2.37800948,2066.6,2066.2,5.61031]
[1742992895633,2.37800948,2066.4,2066.2,10.14631]
[1742992895833,2.37800948,2066.5,2066.2,10.14631]
[1742992896034,2.37800948,2066.5,2066.3,1.498631]
[1742992896631,4.83897,2066.6,2066.1,19.34]
[1742992896632,2.37800948,2066.4,2066.1,14.5]
[1742992896825,0.7944,2066.7,2066.1,19.34001]
[1742992896826,2.37800948,2066.3,2066.1,19.34001]
[1742992897423,2.37800948,2066.3,2066.1,14.5]
[1742992897629,2.37800948,2066.2,2066.1,14.5]
[1742992897838,2.37800948,2066.2,2066.1,2.03063001]
[1742992898624,4.8391,2066.5,2066.1,2.82863001]
[1742992898625,3.0,2066.5,2066.1,2.82863001]
[1742992898837,2.37800948,2066.4,2066.2,4.83962]
[1742992899148,2.37800948,2066.4,2066.2,9.67926]
[1742992899817,2.37800948,2066.4,2066.2,4.83962]
[1742992900145,2.37800948,2066.4,2066.3,0.766825]
[1742992900348,2.37800948,2066.5,2066.4,4.83933]
[1742992900553,5.37800948,2066.6,2066.4,4.83933]
[1742992900719,5.37800948,2066.6,2066.3,5.606385]
[1742992901046,2.37800948,2066.5,2066.4,0.5606385]
[1742992901353,2.37800948,2066.5,2066.4,15.0606385]
[1742992901551,2.37800948,2066.5,2066.4,0.5606385]
[1742992901749,2.37800948,2066.7,2066.4,1.3309385]
[1742992901954,2.37800948,2066.8,2066.6,4.83882]
[1742992902249,2.37800948,2066.9,2066.7,7.256421]
[1742992902454,2.37800948,2066.8,2066.7,2.417791]
[1742992902652,2.37800948,2066.8,2066.5,9.67803]
[1742992902852,3.96330217,2066.8,2066.5,19.33894]
[1742992903033,3.96330217,2066.7,2066.5,14.5]
[1742992903434,3.96330217,2066.7,2066.5,19.33902]
[1742992903620,3.96330217,2066.7,2066.6,2.55091385]
[1742992903978,9.60964217,2066.7,2066.4,0.5606385]
[1742992904650,9.60964217,2066.7,2066.4,5.3999485]
[1742992904853,9.60953217,2066.7,2066.4,0.5606385]
[1742992905054,4.77090217,2066.7,2066.4,5.3999585]
[1742992905258,9.60958217,2066.7,2066.4,0.5606385]
[1742992907968,4.77090217,2066.7,2066.4,0.5606385]
[1742992908272,9.60966217,2066.7,2066.4,0.5606385]
[1742992909979,4.77090217,2066.7,2066.4,5.3999085]
[1742992910127,4.77090217,2066.7,2066.5,1.02393185]
[1742992913082,9.60963217,2066.7,2066.5,1.02393185]
[1742992913263,9.60963217,2066.7,2066.4,0.5606385]
[1742992914195,9.60963217,2066.7,2066.4,5.3999585]
[1742992915564,5.64631,2066.7,2066.4,5.3999585]
[1742992915767,9.60961217,2066.7,2066.4,0.5606385]
[1742992915965,4.83895,2066.6,2066.2,5.83133137]
[1742992916165,4.83895,2066.6,2066.2,20.33129137]
[1742992916365,4.83895,2066.6,2066.2,10.67098137]
[1742992916559,4.83895,2066.6,2066.2,10.67091137]
[1742992916800,4.83895,2066.6,2066.2,5.83135137]
[1742992916981,4.83895,2066.6,2066.2,5.83129137]
[1742992917451,4.83895,2066.6,2066.2,9.67933]
[1742992917660,5.61781,2066.4,2066.2,2.98676204]
[1742992917872,0.7784,2066.4,2066.2,2.98676204]
[1742992918073,0.7784,2066.4,2066.2,7.82653204]
[1742992918516,0.7784,2066.4,2066.2,2.98676204]
[1742992919372,5.6178,2066.4,2066.2,2.98676204]
[1742992919566,5.6178,2066.4,2066.1,9.3759]
[1742992922274,0.7784,2066.4,2066.2,4.83973]
[1742992922475,8.80240217,2066.5,2066.2,4.83973]
[1742992922692,8.80240217,2066.5,2066.1,14.21579]
[1742992922896,4.8391,2066.5,2066.1,9.37589]
[1742992923099,0.8166,2066.9,2066.3,4.83956]
[1742992923301,4.83854,2066.8,2066.5,0.7657]
[1742992923543,3.96330217,2066.7,2066.4,4.83927]
[1742992924687,0.7775,2066.6,2066.3,4.83955]
[1742992924888,0.7775,2066.6,2066.3,7.70449844]
[1742992926196,5.61644,2066.6,2066.3,7.70449844]
[1742992927033,0.7775,2066.6,2066.3,7.70449844]
[1742992927334,3.96330217,2066.7,2066.5,4.83909]
[1742992927490,0.7856,2066.8,2066.5,4.83909]
[1742992927695,0.7856,2066.8,2066.5,5.69348294]
[1742992928433,0.7856,2066.8,2066.5,10.53245294]
[1742992928607,0.7856,2066.8,2066.5,5.69336294]
[1742992929189,0.7856,2066.8,2066.5,5.69333294]
[1742992929395,3.96330217,2066.9,2066.6,4.83879]
[1742992929615,3.96330217,2066.9,2066.6,5.97115229]
[1742992930012,8.80158217,2066.9,2066.6,1.13236229]
[1742992930653,8.80158217,2066.9,2066.5,4.83894]
[1742992931294,8.80158217,2066.9,2066.5,9.67791]
[1742992931851,4.83849,2066.8,2066.5,4.83894]
[1742992932145,0.8028,2066.7,2066.4,4.83929]
[1742992932639,9.60473217,2066.7,2066.4,4.83929]
[1742992932848,4.76610217,2066.7,2066.4,4.83929]
[1742992933056,9.60483217,2066.7,2066.4,5.98295484]
[1742992933219,4.76610217,2066.7,2066.4,5.98295484]
[1742992933426,4.76610217,2066.7,2066.4,5.98284484]
[1742992934232,9.60474217,2066.7,2066.4,5.98284484]
[1742992934432,4.76610217,2066.7,2066.4,5.98284484]
[1742992934951,4.76610217,2066.7,2066.4,10.82204484]
[1742992935561,0.8028,2066.7,2066.4,10.82204484]
[1742992935857,0.8028,2066.7,2066.4,5.98284484]
[1742992936065,0.8028,2066.7,2066.4,10.82204484]
[1742992936351,4.83849,2066.8,2066.5,1.08220448]
[1742992936520,4.83849,2066.8,2066.5,4.83906]
[1742992936724,4.83849,2066.8,2066.5,4.83902]
[1742992937263,8.63616,2066.9,2066.6,4.83876]
[1742992937620,12.59946217,2066.9,2066.6,4.83876]
[1742992938122,6.96330217,2066.9,2066.7,4.83861]
[1742992938368,6.96330217,2066.9,2066.6,4.83871]
[1742992938654,6.96330217,2066.9,2066.7,1.049539]
[1742992938855,11.80147217,2066.9,2066.7,1.049539]
[1742992940234,11.80147217,2066.9,2066.6,4.8388]
[1742992941146,8.80200217,2066.7,2066.2,6.57151843]
[1742992941547,0.7994,2066.5,2066.2,9.67937]
[1742992941755,0.7994,2066.5,2066.3,4.83956]
[1742992942029,0.7994,2066.5,2066.3,5.807483]
[1742992942438,0.7994,2066.5,2066.3,0.967923]
[1742992942973,9.60190217,2066.5,2066.3,0.967923]
[1742992943152,9.60190217,2066.5,2066.1,9.67981]
[1742992943356,9.60190217,2066.5,2066.2,4.83979]
[1742992943775,14.44123217,2066.5,2066.1,4.83988]
[1742992943926,9.60190217,2066.5,2066.1,9.67981]
[1742992944359,9.60190217,2066.5,2066.1,9.67982]
[1742992944557,9.60190217,2066.5,2066.1,4.83988]
[1742992945380,9.60190217,2066.5,2066.2,1.63425929]
[1742992945541,9.60190217,2066.5,2066.2,6.47405929]
[1742992945863,5.6386,2066.5,2066.2,6.47405929]
[1742992946777,0.7994,2066.5,2066.2,6.47405929]
[1742992946929,5.63854,2066.5,2066.2,6.47405929]
[1742992947257,5.63854,2066.5,2066.3,1.13139393]
[1742992947460,4.83886,2066.6,2066.3,1.13139393]
[1742992947659,0.7717,2066.7,2066.4,4.83913]
[1742992948173,0.7717,2066.7,2066.5,4.83897]
[1742992948347,12.60600217,2066.9,2066.5,4.83897]
[1742992948550,4.83848,2066.8,2066.5,4.83897]
[1742992949642,4.83848,2066.8,2066.4,4.83913]
[1742992950175,4.83848,2066.8,2066.4,9.67831]
[1742992950591,4.83848,2066.8,2066.5,4.83909]
[1742992951081,4.83848,2066.8,2066.4,9.67832]
[1742992951789,4.83848,2066.8,2066.4,4.83913]
[1742992951994,4.83848,2066.8,2066.4,9.6783]
[1742992952159,4.83848,2066.8,2066.4,10.92765557]
[1742992952480,4.83848,2066.8,2066.5,4.83909]
[1742992952697,4.83848,2066.8,2066.4,6.08848557]
[1742992953067,4.83848,2066.8,2066.4,10.92768557]
[1742992953280,4.83848,2066.8,2066.4,10.92766557]
[1742992953581,9.677,2066.8,2066.4,6.08861557]
[1742992953803,4.83848,2066.8,2066.4,4.83926]
[1742992954408,4.83848,2066.8,2066.4,9.67846]
[1742992954907,4.83848,2066.8,2066.5,4.83909]
[1742992957507,8.64268,2066.9,2066.5,4.83909]
[1742992957707,4.83843,2066.8,2066.5,4.83909]
[1742992957890,12.60602217,2066.9,2066.5,10.82144778]
[1742992958207,12.60602217,2066.9,2066.6,4.83885]
[1742992960280,7.76780217,2066.9,2066.6,4.83885]
[1742992960912,6.18228761,2066.9,2066.6,4.83885]
[1742992961078,6.18228761,2066.9,2066.7,1.08212078]
[1742992962411,2.37778761,2066.8,2066.7,1.08212078]
[1742992962826,6.18228761,2066.9,2066.7,1.08212078]
[1742992964722,0.8045,2066.9,2066.7,1.08212078]
[1742992964908,5.37778761,2067.0,2066.6,0.7742]
[1742992965217,2.37778761,2066.9,2066.8,4.83836]
[1742992965397,2.37778761,2067.0,2066.8,4.83836]
[1742992965600,3.0,2067.5,2066.7,2.42617127]
[1742992965805,2.37778761,2067.3,2067.0,4.83775]
[1742992966114,5.65782,2067.4,2067.0,4.83775]
[1742992966115,2.37778761,2067.2,2067.0,4.83775]
[1742992966519,2.37778761,2067.3,2067.0,4.83775]
[1742992966719,2.37778761,2067.2,2067.0,4.83792]
[1742992967824,2.37778761,2067.2,2067.0,9.67569]
[1742992970095,2.37778761,2067.2,2067.1,4.83769]
[1742992973121,5.37778761,2067.3,2067.1,4.83769]
[1742992976746,5.37778761,2067.3,2067.1,9.67525]
[1742992977554,6.19848761,2067.4,2067.1,9.67525]
[1742992978244,6.19848761,2067.4,2067.2,4.8374]
[1742992978449,5.37778761,2067.3,2067.1,4.83756]
[1742992978607,2.37778761,2067.3,2067.1,4.83756]
[1742992981378,11.03547761,2067.4,2067.1,4.83756]
[1742992981738,6.19848761,2067.4,2067.1,9.6751]
[1742992981943,5.37778761,2067.4,2067.1,9.6751]
[1742992982156,5.37778761,2067.4,2067.1,9.67512]
[1742992982456,5.37778761,2067.4,2067.1,4.83754]
[1742992982659,10.21479761,2067.4,2067.1,4.83754]
[1742992984074,5.37778761,2067.4,2067.1,4.83754]
[1742992984681,5.37778761,2067.4,2067.1,9.67509]
[1742992984982,5.37778761,2067.4,2067.1,4.83754]
[1742992985515,5.37778761,2067.4,2067.1,9.67509]
[1742992985683,5.37778761,2067.4,2067.1,4.83754]
[1742992986551,10.21479761,2067.4,2067.1,4.83754]
[1742992987796,2.37778761,2067.3,2067.1,4.83754]
[1742992988193,2.37778761,2067.2,2066.9,5.6566]
[1742992988378,7.21534761,2067.2,2066.8,5.78408915]
[1742992988554,7.21534761,2067.2,2066.8,9.67647]
[1742992988755,7.21534761,2067.2,2066.9,4.83813]
[1742992989601,4.83756,2067.2,2066.9,9.67616]
[1742992989806,4.83756,2067.2,2066.9,4.83803]
[1742992990107,7.21534761,2067.2,2066.9,4.83803]
[1742992990486,2.37778761,2067.2,2066.9,9.67604]
[1742992991413,10.21510761,2067.3,2066.9,9.67604]
[1742992992418,2.37778761,2067.2,2066.9,9.67604]
[1742992992576,10.21510761,2067.3,2067.0,5.62171]
[1742992992924,3.0,2067.3,2067.1,4.83764]
[1742992993070,3.0,2067.4,2067.1,4.8376]
[1742992993275,8.03182761,2067.6,2067.2,4.8373]
[1742992993499,3.0,2067.5,2067.3,4.83721]
[1742992993898,2.37778761,2067.6,2067.3,5.63123]
[1742992994274,5.37778761,2067.6,2067.3,5.63123]
[1742992994486,2.37778761,2067.4,2067.2,4.83742]
[1742992995097,5.65498,2067.5,2067.2,4.83742]
[1742992995317,2.37778761,2067.4,2067.2,4.83742]
[1742992996515,2.37778761,2067.4,2067.2,9.67474]
[1742992996677,3.19588761,2067.5,2067.2,9.67474]
[1742992996878,2.37778761,2067.5,2067.2,9.67474]
[1742992997214,2.37778761,2067.5,2067.3,5.64827]
[1742992998514,5.37778761,2067.6,2067.4,4.83691]
[1742992999080,2.37778761,2067.6,2067.3,5.64816]
[1742992999315,2.37778761,2067.6,2067.4,4.83688]
[1742992999519,3.0,2067.7,2067.4,4.83688]
[1742992999520,5.37778761,2067.7,2067.4,9.67371]
[1742992999887,2.37778761,2067.6,2067.4,4.83683]
[1742993000084,2.37778761,2067.6,2067.3,5.64819]
[1742993000285,2.37778761,2067.6,2067.4,4.83698]
[1742993000917,2.37778761,2067.5,2067.4,4.83698]
[1742993001114,2.37778761,2067.6,2067.4,4.83698]
[1742993003088,2.37778761,2067.6,2067.4,9.67386]
[1742993003293,5.37778761,2067.7,2067.4,1.14341778]
[1742993003495,2.37778761,2067.5,2067.4,4.83699]
[1742993003713,2.37778761,2067.6,2067.4,4.83699]
[1742993003895,0.09047486,2067.5,2067.4,4.83699]
[1742993004903,0.09180473,2067.5,2067.4,4.83699]
[1742993005102,2.37778761,2067.7,2067.4,4.83699]
[1742993005304,0.09180473,2067.6,2067.4,9.67384]
[1742993005538,0.09180473,2067.6,2067.4,7.30182948]
[1742993006940,2.37778761,2067.7,2067.4,7.30178948]
[1742993007244,0.09180473,2067.6,2067.4,7.30178948]
[1742993007412,0.09180473,2067.6,2067.4,4.83681]
[1742993008440,2.37778761,2067.7,2067.4,4.83681]
[1742993009629,7.21414761,2067.7,2067.4,4.83681]
[1742993011043,2.37778761,2067.7,2067.4,4.83681]
[1742993012058,2.37778761,2067.7,2067.4,9.67363]
[1742993012358,2.37778761,2067.7,2067.4,4.83681]
[1742993012532,2.37778761,2067.7,2067.4,9.67367]
[1742993012859,2.37778761,2067.7,2067.4,4.83681]
[1742993012860,7.21410761,2067.7,2067.4,4.83681]
[1742993013066,2.37778761,2067.7,2067.4,9.67366]
[1742993015369,2.37778761,2067.7,2067.4,4.83681]
[1742993015582,2.37778761,2067.7,2067.4,9.67365]
[1742993016578,2.37778761,2067.7,2067.5,4.83675]
[1742993020002,2.37778761,2067.7,2067.4,19.33681]
[1742993020187,2.37778761,2067.7,2067.4,24.17365]
[1742993020786,2.37778761,2067.7,2067.5,4.83673]
[1742993021893,2.37778761,2067.7,2067.4,24.17368]
[1742993022194,2.37778761,2067.7,2067.5,4.83673]
[1742993022602,10.21395761,2067.8,2067.5,4.83673]
[1742993023196,5.60904,2068.1,2067.6,8.01666761]
[1742993023517,2.37778761,2068.0,2067.6,0.8024]
[1742993023674,7.21347761,2068.0,2067.6,10.47511]
[1742993023860,7.21347761,2068.0,2067.7,4.83628]
[1742993024269,7.21347761,2068.0,2067.7,5.883781]
[1742993024498,5.37778761,2068.0,2067.7,5.883611]
[1742993025570,10.21338761,2068.0,2067.7,5.883611]
[1742993026805,15.04913761,2068.0,2067.7,1.047501]
[1742993027099,7.21388761,2067.8,2067.5,4.83664]
[1742993027275,2.37778761,2067.8,2067.5,4.83664]
[1742993027706,10.21368761,2067.9,2067.5,4.83664]
[1742993028005,10.21368761,2067.9,2067.5,4.83663]
[1742993028205,2.37778761,2067.8,2067.5,4.83665]
[1742993028378,2.37778761,2067.8,2067.5,7.334327]
[1742993028581,2.37778761,2067.8,2067.5,7.334287]
[1742993028917,3.0,2067.9,2067.7,0.7846]
[1742993029204,5.37778761,2068.0,2067.7,5.62079]
[1742993029909,10.21337761,2068.0,2067.7,5.62079]
[1742993030120,7.83584,2067.9,2067.7,0.7846]
[1742993030271,7.83584,2067.9,2067.5,7.334397]
[1742993030612,7.83584,2067.9,2067.6,5.58782]
[1742993030796,0.803,2068.3,2068.0,4.83558]
[1742993030970,2.37778761,2068.4,2068.1,4.83527]
[1742993031169,5.37778761,2068.4,2068.0,4.8355]
[1742993031404,10.21250761,2068.4,2068.1,4.83532]
[1742993032203,15.04735761,2068.4,2068.0,4.83551]
[1742993032378,5.37778761,2068.3,2068.0,4.83551]
[1742993032580,3.0,2068.3,2068.0,9.67098]
[1742993032805,3.0,2068.3,2068.1,4.83534]
[1742993033878,3.0,2068.3,2068.1,4.83523]
[1742993034070,3.0,2068.3,2068.2,4.83512]
[1742993035514,3.0,2068.3,2068.1,4.8352]
[1742993037919,5.37778761,2068.3,2068.0,5.58082306]
[1742993038132,5.37778761,2068.3,2068.0,10.41625306]
[1742993038416,3.0,2068.3,2068.1,4.83535]
[1742993038719,3.0,2068.3,2067.8,3.34966873]
[1742993038720,10.21298761,2068.2,2067.8,9.67176]
[1742993038878,2.37778761,2068.1,2067.8,9.67182]
[1742993039075,2.37778761,2068.1,2067.8,4.83587]
[1742993039302,10.21298761,2068.2,2067.8,6.40924987]
[1742993039517,10.21298761,2068.2,2067.8,11.24514987]
[1742993039717,10.21298761,2068.2,2067.8,6.40924987]
[1742993039932,3.0,2068.2,2067.9,5.61795]
[1742993040814,3.0,2068.2,2067.9,10.45365]
[1742993041022,3.0,2068.2,2068.0,4.83551]
[1742993041221,10.21278761,2068.3,2067.9,7.28752019]
[1742993041534,4.83435,2068.6,2068.1,5.64727]
[1742993041735,3.0,2068.4,2068.1,0.8121]
[1742993041951,7.83475,2068.4,2068.1,0.8121]
[1742993042151,7.83475,2068.4,2068.2,14.5]
[1742993042929,3.0,2068.4,2068.2,14.5]
[1742993043254,3.0,2068.4,2068.2,19.33508]
[1742993043926,3.0,2068.4,2068.2,14.5]
[1742993046648,3.0,2068.4,2068.1,5.64733]
[1742993046849,3.0,2068.4,2068.1,6.93339776]
[1742993047316,3.0,2068.4,2068.1,6.93337776]
[1742993048170,2.37778761,2068.3,2068.0,19.33548]
[1742993048313,2.37778761,2068.3,2068.0,4.83551]
[1742993048515,2.37778761,2068.2,2068.0,4.83551]
[1742993049126,2.37778761,2068.3,2068.0,4.83551]
[1742993049949,0.7995,2068.0,2067.4,0.36133989]
[1742993050156,11.58643761,2067.5,2067.4,0.36133989]
[1742993050550,15.64843761,2067.5,2067.4,0.36133989]
[1742993050791,11.03643761,2067.5,2067.4,0.36133989]
[1742993050953,8.65865,2067.5,2067.4,0.36133989]
[1742993051296,3.0,2067.4,2067.0,4.83791]
[1742993051460,3.0,2067.4,2067.1,1.81124121]
[1742993051789,3.0,2067.4,2067.1,1.85961134]
[1742993052091,7.83654,2067.6,2067.1,1.85961134]
[1742993052582,4.83676,2067.5,2067.2,14.5]
[1742993053085,4.83702,2067.4,2066.9,6.900643]
[1742993053289,8.79817911,2067.4,2067.0,1.1739003]
[1742993053498,13.63532911,2067.4,2067.0,1.1739003]
[1742993053695,13.63532911,2067.4,2067.1,14.5]
[1742993053844,4.83724,2067.3,2067.1,14.5]
[1742993054051,4.83724,2067.3,2067.0,1.1739003]
[1742993054669,4.74395911,2067.4,2066.9,15.3313]
[1742993054869,4.83777,2067.1,2066.9,14.5]
[1742993055157,4.83777,2067.1,2066.7,4.614]
[1742993055387,4.83779,2067.1,2066.7,4.614]
[1742993055581,4.83818,2066.9,2066.7,6.21346221]
[1742993055771,4.83818,2066.9,2066.8,14.5]
[1742993056069,4.83795,2067.0,2066.4,0.7664]
[1742993056070,4.83864,2066.7,2066.4,0.7664]
[1742993056678,4.83864,2066.7,2066.5,14.5]
[1742993057989,4.83886,2066.6,2066.5,14.5]
[1742993058293,4.83886,2066.6,2066.4,0.7664]
[1742993059792,4.83864,2066.7,2066.4,0.7664]
[1742993060095,4.83864,2066.7,2066.4,3.77114856]
[1742993060466,9.67743,2066.7,2066.5,14.5]
[1742993060801,4.83864,2066.7,2066.5,14.5]
[1742993063200,8.79956911,2066.8,2066.5,14.5]
[1742993063713,13.63813911,2066.8,2066.5,14.5]
[1742993063918,8.79956911,2066.8,2066.5,14.5]
[1742993065181,13.63811911,2066.8,2066.5,14.5]